[Event "SuperChess Cup Blitz 2019"]
[Site "Bucharest"]
[Date "2019.11.10"]
[Round "11.2"]
[White "David, Alexandru-Vasile"]
[Black "Cosma, Elena-Luminita"]
[Result "1-0"]
[ECO "D35"]
[WhiteElo "2361"]
[BlackElo "2199"]
[Annotator "ChessBase"]
[PlyCount "81"]
[EventDate "2019.11.06"]
[EventType "tourn"]
[EventCountry "ROU"]
[SourceTitle "playchess.com"]
[Source "ChessBase"]
[SourceQuality "1"]
[TimeMode "Bronstein"]
[TimeControl "300+3"]

1. d4 {[%emt 0:00:00]} d5 {[%emt 0:00:00]} 2. c4 {[%emt 0:00:00]} e6 {[%emt 0:00:00]} 3. Nc3 {[%emt 0:00:00]} Nf6 {[%emt 0:00:00]} 4. cxd5 {[%emt 0:00:00]} exd5 {[%emt 0:00:00]} 5. Bg5 {[%emt 0:00:00]} Be7 {[%emt 0:00:00]} 6. e3 {[%emt 0:00:00]} c6 {[%emt 0:00:00]} 7. Bd3 {[%emt 0:00:00]} Nbd7 {[%emt 0:00:00]} 8. f3 {[%emt 0:00:00]} Nb6 {[%emt 0:00:11]} 9. Nge2 {[%emt 0:00:05]} Nh5 {[%emt 0:00:04]} 10. Bxe7 {[%emt 0:00:07]} Qxe7 {[%emt 0:00:03]} 11. Qd2 {[%emt 0:00:12]} O-O {[%emt 0:00:08]} 12. g4 {[%emt 0:00:27]} Nf6 {[%emt 0:00:03]} 13. h3 {[%emt 0:00:05]} Re8 {[%emt 0:00:35]} 14. Kf2 {[%emt 0:00:03]} Bd7 {[%emt 0:00:19]} 15. Ng3 {[%emt 0:00:12]} c5 {[%emt 0:00:03]} 16. g5 {[%emt 0:00:14]} Nh5 {[%emt 0:00:50]} 17. Nxh5 {[%emt 0:00:38]} Qxg5 {[%emt 0:00:03]} 18. Nf4 {[%emt 0:00:03]} Qh4+ {[%emt 0:00:03]} 19. Kg2 {[%emt 0:00:03]} cxd4 {[%emt 0:00:28]} 20. exd4 {[%emt 0:00:03]} Qh6 {[%emt 0:01:12]} 21. Rad1 {[%emt 0:00:14]} Rad8 {[%emt 0:00:31]} 22. Nfe2 {[%emt 0:00:06]} Qh5 {[%emt 0:00:32]} 23. Qf4 {[%emt 0:00:19]} f6 {[%emt 0:00:24]} 24. Ng3 {[%emt 0:00:07]} Qf7 {[%emt 0:00:03]} 25. Rhe1 {[%emt 0:00:10]} Nc4 {[%emt 0:00:03]} 26. Bxc4 {[%emt 0:00:13]} dxc4 {[%emt 0:00:03]} 27. d5 {[%emt 0:00:04]} Bc8 {[%emt 0:00:08]} 28. Qxc4 {[%emt 0:00:11]} Qd7 {[%emt 0:00:05]} 29. Qh4 {[%emt 0:00:18]} Qd6 {[%emt 0:00:06]} 30. Nge4 {[%emt 0:00:12]} Qb6 {[%emt 0:00:03]} 31. Kh1 {[%emt 0:00:13]} Bf5 {[%emt 0:00:03]} 32. b3 {[%emt 0:00:12]} Bg6 {[%emt 0:00:03]} 33. Qf2 {[%emt 0:00:08]} Qc7 {[%emt 0:00:03]} 34. d6 {[%emt 0:00:10]} Qd7 {[%emt 0:00:03]} 35. Kh2 {[%emt 0:00:05]} Qf5 {[%emt 0:00:03]} 36. Ng3 {[%emt 0:00:06]} Qf4 {[%emt 0:00:03]} 37. Rxe8+ {[%emt 0:00:06]} Rxe8 38. d7 {[%emt 0:00:04]} Rd8 {[%emt 0:00:03]} 39. Qd4 {[%emt 0:00:03]} Qc7 {[%emt 0:00:04]} 40. Nd5 {[%emt 0:00:05]} Qd6 {[%emt 0:00:04]} 41. Qf4 {[%emt 0:00:12]} 1-0

[Event "SuperChess Cup Blitz 2019"]
[Site "Bucharest"]
[Date "2019.11.10"]
[Round "11.3"]
[White "Miron, Lucian-Costin"]
[Black "Georgescu, Tiberiu-Marian"]
[Result "1-0"]
[ECO "C41"]
[WhiteElo "2432"]
[BlackElo "2373"]
[Annotator "ChessBase"]
[PlyCount "89"]
[EventDate "2019.11.06"]
[EventType "tourn"]
[EventCountry "ROU"]
[SourceTitle "playchess.com"]
[Source "ChessBase"]
[SourceQuality "1"]
[TimeMode "Bronstein"]
[TimeControl "300+3"]

1. e4 {[%emt 0:00:00]} d6 {[%emt 0:00:00]} 2. d4 {[%emt 0:00:00]} Nf6 {[%emt 0:00:00]} 3. Nc3 {[%emt 0:00:00]} e5 {[%emt 0:00:00]} 4. Nf3 {[%emt 0:00:00]} Nbd7 {[%emt 0:00:00]} 5. Bc4 {[%emt 0:00:00]} Be7 {[%emt 0:00:00]} 6. O-O {[%emt 0:00:00]} O-O {[%emt 0:00:00]} 7. a4 {[%emt 0:00:00]} c6 {[%emt 0:00:00]} 8. a5 {[%emt 0:00:00]} exd4 {[%emt 0:00:00]} 9. Nxd4 {[%emt 0:00:00]} Ne5 {[%emt 0:00:00]} 10. Be2 {[%emt 0:00:00]} Re8 {[%emt 0:00:00]} 11. Re1 {[%emt 0:00:00]} Bf8 {[%emt 0:00:00]} 12. h3 {[%emt 0:00:00]} Ng6 {[%emt 0:00:00]} 13. Bf1 {[%emt 0:00:02]} d5 {[%emt 0:00:25]} 14. Bg5 {[%emt 0:00:31]} h6 {[%emt 0:00:26]} 15. Bxf6 {[%emt 0:00:37]} Qxf6 {[%emt 0:00:03]} 16. Qd2 {[%emt 0:00:11]} Bc5 {[%emt 0:01:24]} 17. Nb3 {[%emt 0:00:14]} Bb4 {[%emt 0:00:21]} 18. exd5 {[%emt 0:00:05]} Bd7 {[%emt 0:00:03]} 19. dxc6 {[%emt 0:01:06]} Bxc6 {[%emt 0:00:03]} 20. Nd5 {[%emt 0:00:03]} Bxd5 {[%emt 0:00:13]} 21. Rxe8+ {[%emt 0:00:03]} Rxe8 {[%emt 0:00:03]} 22. Qxd5 {[%emt 0:00:03]} Qxb2 {[%emt 0:00:13]} 23. Qb5 {[%emt 0:00:18]} Re4 {[%emt 0:00:55]} 24. Bd3 {[%emt 0:00:08]} Qxa1+ {[%emt 0:01:06]} 25. Nxa1 {[%emt 0:00:04]} Re1+ {[%emt 0:00:03]} 26. Bf1 {[%emt 0:00:07]} Bd6 {[%emt 0:00:05]} 27. Nb3 {[%emt 0:00:23]} Nf4 {[%emt 0:00:03]} 28. g3 {[%emt 0:00:06]} Nxh3+ {[%emt 0:00:03]} 29. Kg2 {[%emt 0:00:03]} Ng5 {[%emt 0:00:03]} 30. Qxb7 {[%emt 0:00:05]} h5 {[%emt 0:00:06]} 31. Bd3 {[%emt 0:00:09]} g6 {[%emt 0:00:04]} 32. Qd5 {[%emt 0:00:12]} Be7 {[%emt 0:00:04]} 33. Bxg6 {[%emt 0:00:08]} h4 {[%emt 0:00:03]} 34. gxh4 {[%emt 0:00:04]} Ne6 {[%emt 0:00:03]} 35. Qa8+ {[%emt 0:00:08]} Kg7 {[%emt 0:00:03]} 36. Bd3 {[%emt 0:00:03]} Bxh4 {[%emt 0:00:07]} 37. Qxa7 {[%emt 0:00:04]} Bg5 {[%emt 0:00:03]} 38. Nd4 {[%emt 0:00:05]} Nf4+ {[%emt 0:00:03]} 39. Kf3 {[%emt 0:00:03]} Rg1 {[%emt 0:00:05]} 40. Nf5+ {[%emt 0:00:03]} Kf6 {[%emt 0:00:03]} 41. Qb6+ {[%emt 0:00:04]} Ne6 {[%emt 0:00:03]} 42. Ng3 {[%emt 0:00:04]} Kg7 {[%emt 0:00:03]} 43. a6 {[%emt 0:00:04]} Ra1 {[%emt 0:00:03]} 44. a7 {[%emt 0:00:03]} Bf6 {[%emt 0:00:03]} 45. Nh5+ {[%emt 0:00:03]} 1-0

[Event "SuperChess Cup Blitz 2019"]
[Site "Bucharest"]
[Date "2019.11.10"]
[Round "11.4"]
[White "Lupulescu, Constantin"]
[Black "Deac, Bogdan-Daniel"]
[Result "1/2-1/2"]
[ECO "B11"]
[WhiteElo "2525"]
[BlackElo "2544"]
[Annotator "ChessBase"]
[PlyCount "57"]
[EventDate "2019.11.06"]
[EventType "tourn"]
[EventCountry "ROU"]
[SourceTitle "playchess.com"]
[Source "ChessBase"]
[SourceQuality "1"]
[TimeMode "Bronstein"]
[TimeControl "300+3"]

1. e4 {[%emt 0:00:00]} c6 {[%emt 0:00:00]} 2. Nf3 {[%emt 0:00:00]} d5 {[%emt 0:00:00]} 3. Nc3 {[%emt 0:00:00]} Bg4 {[%emt 0:00:02]} 4. h3 {[%emt 0:00:00]} Bh5 {[%emt 0:00:02]} 5. d4 {[%emt 0:01:05]} e6 {[%emt 0:00:08]} 6. Be2 {[%emt 0:00:07]} Nf6 {[%emt 0:00:14]} 7. e5 {[%emt 0:00:14]} Nfd7 {[%emt 0:00:16]} 8. O-O {[%emt 0:00:31]} c5 {[%emt 0:01:22]} 9. Bg5 {[%emt 0:00:05]} Qc8 {[%emt 0:01:32]} 10. Nb5 {[%emt 0:00:24]} Bxf3 {[%emt 0:01:09]} 11. Bxf3 {[%emt 0:00:03]} cxd4 {[%emt 0:00:03]} 12. Nxd4 {[%emt 0:00:42]} Nxe5 {[%emt 0:00:17]} 13. Re1 {[%emt 0:00:10]} Nbd7 {[%emt 0:00:18]} 14. Bxd5 {[%emt 0:01:06]} exd5 {[%emt 0:00:03]} 15. f4 {[%emt 0:00:03]} f6 {[%emt 0:00:03]} 16. Bh4 {[%emt 0:00:10]} Bd6 {[%emt 0:00:03]} 17. Nf5 {[%emt 0:00:10]} Bc5+ {[%emt 0:00:03]} 18. Kh1 {[%emt 0:00:08]} O-O {[%emt 0:00:03]} 19. fxe5 {[%emt 0:00:03]} Nxe5 {[%emt 0:00:03]} 20. Qxd5+ {[%emt 0:00:03]} Kh8 {[%emt 0:00:03]} 21. Qe4 {[%emt 0:00:13]} Qc6 {[%emt 0:00:03]} 22. Qxc6 {[%emt 0:00:05]} Nxc6 {[%emt 0:00:03]} 23. Rad1 {[%emt 0:00:10]} Rad8 {[%emt 0:00:03]} 24. c3 {[%emt 0:00:04]} a5 {[%emt 0:00:03]} 25. Bg3 {[%emt 0:00:03]} Kg8 {[%emt 0:00:03]} 26. Nd6 {[%emt 0:00:03]} Rd7 {[%emt 0:00:03]} 27. Ne4 {[%emt 0:00:03]} Rxd1 {[%emt 0:00:03]} 28. Rxd1 {[%emt 0:00:03]} Bb6 {[%emt 0:00:03]} 29. Bf2 {[%emt 0:00:05]} 1/2-1/2

[Event "SuperChess Cup Blitz 2019"]
[Site "Bucharest"]
[Date "2019.11.10"]
[Round "11.5"]
[White "Parligras, Mircea-Emilian"]
[Black "Peptan, Corina-Isabela"]
[Result "1-0"]
[ECO "B46"]
[WhiteElo "2458"]
[BlackElo "2334"]
[Annotator "ChessBase"]
[PlyCount "103"]
[EventDate "2019.11.06"]
[EventType "tourn"]
[EventCountry "ROU"]
[SourceTitle "playchess.com"]
[Source "ChessBase"]
[SourceQuality "1"]
[TimeMode "Bronstein"]
[TimeControl "300+3"]

1. e4 {[%emt 0:00:00]} c5 {[%emt 0:00:00]} 2. Nf3 {[%emt 0:00:00]} e6 {[%emt 0:00:00]} 3. d4 {[%emt 0:00:00]} cxd4 {[%emt 0:00:00]} 4. Nxd4 {[%emt 0:00:00]} Nc6 {[%emt 0:00:00]} 5. Nc3 {[%emt 0:00:00]} a6 {[%emt 0:00:05]} 6. Nxc6 {[%emt 0:00:00]} bxc6 {[%emt 0:00:03]} 7. Bd3 {[%emt 0:00:00]} Qc7 {[%emt 0:00:27]} 8. O-O {[%emt 0:00:02]} Nf6 {[%emt 0:00:03]} 9. f4 {[%emt 0:00:14]} d5 {[%emt 0:00:39]} 10. Qe2 {[%emt 0:00:07]} Bc5+ {[%emt 0:00:18]} 11. Kh1 {[%emt 0:00:03]} O-O {[%emt 0:00:43]} 12. e5 {[%emt 0:00:21]} Nd7 {[%emt 0:00:03]} 13. Na4 {[%emt 0:00:10]} Be7 {[%emt 0:00:07]} 14. c4 {[%emt 0:00:09]} f5 {[%emt 0:00:11]} 15. cxd5 {[%emt 0:00:21]} cxd5 {[%emt 0:00:03]} 16. Be3 {[%emt 0:00:03]} Bb7 {[%emt 0:00:08]} 17. Rac1 {[%emt 0:00:17]} Qa5 {[%emt 0:00:03]} 18. b3 {[%emt 0:00:03]} Rfc8 {[%emt 0:00:03]} 19. Qf2 {[%emt 0:00:16]} Rxc1 {[%emt 0:00:27]} 20. Rxc1 {[%emt 0:00:05]} Rc8 {[%emt 0:00:03]} 21. Rxc8+ {[%emt 0:00:13]} Bxc8 {[%emt 0:00:03]} 22. h3 {[%emt 0:00:23]} Bb7 {[%emt 0:00:03]} 23. Kh2 {[%emt 0:00:11]} Qc7 {[%emt 0:00:05]} 24. Qe2 {[%emt 0:00:19]} Qc6 {[%emt 0:00:07]} 25. Bd4 {[%emt 0:00:06]} g6 {[%emt 0:00:23]} 26. Qc2 {[%emt 0:00:25]} Qxc2 {[%emt 0:00:08]} 27. Bxc2 {[%emt 0:00:03]} Bb4 {[%emt 0:00:03]} 28. Bd3 {[%emt 0:00:13]} Kf7 {[%emt 0:00:03]} 29. g4 {[%emt 0:00:04]} Bd2 {[%emt 0:00:03]} 30. Kg3 {[%emt 0:00:03]} h6 {[%emt 0:00:05]} 31. Kf3 {[%emt 0:00:12]} Ke7 {[%emt 0:00:07]} 32. h4 {[%emt 0:00:19]} h5 {[%emt 0:00:07]} 33. gxh5 {[%emt 0:00:04]} gxh5 {[%emt 0:00:03]} 34. Be2 {[%emt 0:00:04]} Nf8 {[%emt 0:00:08]} 35. Nc5 {[%emt 0:00:04]} Bc8 {[%emt 0:00:04]} 36. Be3 {[%emt 0:00:25]} Be1 {[%emt 0:00:10]} 37. Bf2 {[%emt 0:00:03]} Bd2 {[%emt 0:00:28]} 38. Bxa6 {[%emt 0:00:06]} Bxa6 {[%emt 0:00:03]} 39. Nxa6 {[%emt 0:00:03]} Ng6 {[%emt 0:00:03]} 40. Bg3 {[%emt 0:00:03]} Kd7 {[%emt 0:00:06]} 41. Nc5+ {[%emt 0:00:03]} Ke7 {[%emt 0:00:03]} 42. a3 {[%emt 0:00:08]} d4 {[%emt 0:00:03]} 43. b4 {[%emt 0:00:04]} Nf8 {[%emt 0:00:07]} 44. b5 {[%emt 0:00:07]} Bc1 {[%emt 0:00:11]} 45. a4 {[%emt 0:00:03]} Ba3 {[%emt 0:00:05]} 46. Nb3 {[%emt 0:00:04]} Bb2 {[%emt 0:00:13]} 47. Bf2 {[%emt 0:00:03]} Nd7 {[%emt 0:00:20]} 48. Bxd4 {[%emt 0:00:08]} Ba3 {[%emt 0:00:07]} 49. a5 {[%emt 0:00:05]} Kd8 {[%emt 0:00:03]} 50. a6 {[%emt 0:00:04]} Kc7 {[%emt 0:00:03]} 51. Na5 {[%emt 0:00:08]} Bb4 {[%emt 0:00:07]} 52. a7 {[%emt 0:00:04]} 1-0

[Event "SuperChess Cup Blitz 2019"]
[Site "Bucharest"]
[Date "2019.11.10"]
[Round "12.1"]
[White "Gavrilescu, David"]
[Black "Parligras, Mircea-Emilian"]
[Result "1/2-1/2"]
[ECO "C67"]
[WhiteElo "2274"]
[BlackElo "2458"]
[Annotator "ChessBase"]
[PlyCount "46"]
[EventDate "2019.11.06"]
[EventType "tourn"]
[EventCountry "ROU"]
[SourceTitle "playchess.com"]
[Source "ChessBase"]
[SourceQuality "1"]
[TimeMode "Bronstein"]
[TimeControl "300+3"]

1. e4 {[%emt 0:00:00]} e5 {[%emt 0:00:00]} 2. Nf3 {[%emt 0:00:00]} Nc6 {[%emt 0:00:00]} 3. Bb5 {[%emt 0:00:00]} Nf6 {[%emt 0:00:00]} 4. O-O {[%emt 0:00:01]} Nxe4 {[%emt 0:00:00]} 5. Re1 {[%emt 0:00:01]} Nd6 {[%emt 0:00:00]} 6. Nxe5 {[%emt 0:00:01]} Be7 {[%emt 0:00:00]} 7. Bf1 {[%emt 0:00:01]} Nxe5 {[%emt 0:00:00]} 8. Rxe5 {[%emt 0:00:01]} O-O {[%emt 0:00:00]} 9. d4 {[%emt 0:00:01]} Ne8 {[%emt 0:00:00]} 10. Nc3 {[%emt 0:00:09]} Bf6 {[%emt 0:00:12]} 11. Re1 {[%emt 0:00:03]} d5 {[%emt 0:00:03]} 12. Ne2 {[%emt 0:00:17]} c6 {[%emt 0:00:38]} 13. Nf4 {[%emt 0:00:17]} g6 {[%emt 0:00:09]} 14. c3 {[%emt 0:00:03]} Nd6 {[%emt 0:00:09]} 15. Nd3 {[%emt 0:00:20]} Re8 {[%emt 0:00:10]} 16. Bf4 {[%emt 0:00:06]} Rxe1 {[%emt 0:00:19]} 17. Qxe1 {[%emt 0:00:03]} Bf5 {[%emt 0:00:06]} 18. Nc5 {[%emt 0:00:34]} b6 {[%emt 0:00:12]} 19. Nd3 {[%emt 0:00:03]} Bxd3 {[%emt 0:00:26]} 20. Bxd3 {[%emt 0:00:03]} Qd7 {[%emt 0:00:03]} 21. Qd2 {[%emt 0:00:10]} Re8 {[%emt 0:00:03]} 22. Re1 {[%emt 0:00:03]} Rxe1+ {[%emt 0:00:07]} 23. Qxe1 {[%emt 0:00:03]} Qe7 {[%emt 0:00:06]} 1/2-1/2

[Event "SuperChess Cup Blitz 2019"]
[Site "Bucharest"]
[Date "2019.11.10"]
[Round "12.2"]
[White "Peptan, Corina-Isabela"]
[Black "Lupulescu, Constantin"]
[Result "0-1"]
[ECO "D37"]
[WhiteElo "2334"]
[BlackElo "2525"]
[Annotator "ChessBase"]
[PlyCount "68"]
[EventDate "2019.11.06"]
[EventType "tourn"]
[EventCountry "ROU"]
[SourceTitle "playchess.com"]
[Source "ChessBase"]
[SourceQuality "1"]
[TimeMode "Bronstein"]
[TimeControl "300+3"]

1. d4 {[%emt 0:00:00]} Nf6 {[%emt 0:00:00]} 2. c4 {[%emt 0:00:00]} e6 {[%emt 0:00:00]} 3. Nf3 {[%emt 0:00:00]} d5 {[%emt 0:00:00]} 4. Nc3 {[%emt 0:00:00]} Nbd7 {[%emt 0:00:00]} 5. cxd5 {[%emt 0:00:02]} exd5 {[%emt 0:00:00]} 6. Bg5 {[%emt 0:00:02]} c6 {[%emt 0:00:00]} 7. e3 {[%emt 0:00:02]} h6 {[%emt 0:00:00]} 8. Bh4 {[%emt 0:00:02]} g5 {[%emt 0:00:00]} 9. Bg3 {[%emt 0:00:02]} Nh5 {[%emt 0:00:00]} 10. Bd3 {[%emt 0:00:11]} Nxg3 {[%emt 0:00:00]} 11. hxg3 {[%emt 0:00:03]} Bg7 {[%emt 0:00:04]} 12. g4 {[%emt 0:00:31]} Qe7 {[%emt 0:00:32]} 13. Qe2 {[%emt 0:00:30]} Nb6 {[%emt 0:00:06]} 14. Nd2 {[%emt 0:00:08]} Be6 {[%emt 0:00:13]} 15. a4 {[%emt 0:00:13]} Nc8 {[%emt 0:00:09]} 16. a5 {[%emt 0:00:06]} a6 {[%emt 0:00:03]} 17. Nb3 {[%emt 0:00:16]} Nd6 {[%emt 0:00:04]} 18. Nc5 {[%emt 0:00:03]} O-O {[%emt 0:00:15]} 19. O-O {[%emt 0:00:30]} Rae8 {[%emt 0:00:08]} 20. Nxe6 {[%emt 0:00:14]} fxe6 {[%emt 0:00:17]} 21. Bc2 {[%emt 0:00:38]} e5 {[%emt 0:00:03]} 22. dxe5 {[%emt 0:00:04]} Bxe5 {[%emt 0:00:06]} 23. Qd3 {[%emt 0:00:03]} Rf6 {[%emt 0:00:15]} 24. Rae1 {[%emt 0:00:46]} Ref8 {[%emt 0:00:13]} 25. b3 {[%emt 0:00:08]} Qf7 {[%emt 0:00:10]} 26. Re2 {[%emt 0:00:30]} h5 {[%emt 0:00:12]} 27. gxh5 {[%emt 0:00:27]} Qxh5 {[%emt 0:00:03]} 28. f4 {[%emt 0:00:04]} gxf4 {[%emt 0:00:18]} 29. Nxd5 {[%emt 0:00:07]} cxd5 {[%emt 0:00:41]} 30. Qxd5+ {[%emt 0:00:03]} Nf7 {[%emt 0:00:11]} 31. exf4 {[%emt 0:00:04]} Rd6 {[%emt 0:00:15]} 32. Qc4 {[%emt 0:00:13]} Bd4+ {[%emt 0:00:03]} 33. Ref2 {[%emt 0:00:03]} Re8 {[%emt 0:00:08]} 34. Bd3 {[%emt 0:00:09]} Qc5 {[%emt 0:00:05]} 0-1

[Event "SuperChess Cup Blitz 2019"]
[Site "Bucharest"]
[Date "2019.11.10"]
[Round "12.3"]
[White "Deac, Bogdan-Daniel"]
[Black "Miron, Lucian-Costin"]
[Result "1/2-1/2"]
[ECO "C77"]
[WhiteElo "2544"]
[BlackElo "2432"]
[Annotator "ChessBase"]
[PlyCount "62"]
[EventDate "2019.11.06"]
[EventType "tourn"]
[EventCountry "ROU"]
[SourceTitle "playchess.com"]
[Source "ChessBase"]
[SourceQuality "1"]
[TimeMode "Bronstein"]
[TimeControl "300+3"]

1. e4 {[%emt 0:00:00]} e5 {[%emt 0:00:00]} 2. Nf3 {[%emt 0:00:00]} Nc6 {[%emt 0:00:00]} 3. Bb5 {[%emt 0:00:23]} a6 {[%emt 0:00:00]} 4. Ba4 {[%emt 0:00:03]} Nf6 {[%emt 0:00:00]} 5. Nc3 {[%emt 0:00:03]} Bd6 {[%emt 0:00:17]} 6. d3 {[%emt 0:00:19]} O-O {[%emt 0:00:04]} 7. Bg5 {[%emt 0:00:05]} h6 {[%emt 0:00:33]} 8. Bh4 {[%emt 0:00:03]} Be7 {[%emt 0:00:03]} 9. Bb3 {[%emt 0:01:17]} d6 {[%emt 0:00:05]} 10. Bg3 {[%emt 0:00:25]} Bg4 {[%emt 0:00:13]} 11. h3 {[%emt 0:00:12]} Bh5 {[%emt 0:00:03]} 12. Ne2 {[%emt 0:00:45]} Bxf3 {[%emt 0:00:11]} 13. gxf3 {[%emt 0:00:03]} Nh5 {[%emt 0:00:03]} 14. f4 {[%emt 0:00:05]} exf4 {[%emt 0:00:40]} 15. Nxf4 {[%emt 0:00:03]} Nxf4 {[%emt 0:00:23]} 16. Bxf4 {[%emt 0:00:03]} Bg5 {[%emt 0:00:17]} 17. Qg4 {[%emt 0:00:44]} Qf6 {[%emt 0:01:10]} 18. Bxg5 {[%emt 0:00:05]} Qxb2 {[%emt 0:00:04]} 19. Kd2 {[%emt 0:00:36]} hxg5 {[%emt 0:00:22]} 20. Qxg5 {[%emt 0:00:03]} Nd4 {[%emt 0:00:19]} 21. Qd5 {[%emt 0:00:15]} Nxb3+ {[%emt 0:00:10]} 22. axb3 {[%emt 0:00:03]} Qf6 {[%emt 0:00:03]} 23. Ke2 {[%emt 0:00:10]} c6 {[%emt 0:00:08]} 24. Qa5 {[%emt 0:00:03]} d5 {[%emt 0:00:05]} 25. f3 {[%emt 0:00:03]} Rad8 {[%emt 0:00:11]} 26. Rag1 {[%emt 0:00:05]} dxe4 {[%emt 0:00:12]} 27. fxe4 {[%emt 0:00:03]} Qb2 {[%emt 0:00:10]} 28. Kd2 {[%emt 0:00:08]} Qf6 {[%emt 0:00:03]} 29. Ke2 {[%emt 0:00:06]} Qb2 {[%emt 0:00:03]} 30. Kd2 {[%emt 0:00:03]} Qf6 {[%emt 0:00:03]} 31. Ke2 {[%emt 0:00:03]} Qb2 {[%emt 0:00:03]} 1/2-1/2

[Event "SuperChess Cup Blitz 2019"]
[Site "Bucharest"]
[Date "2019.11.10"]
[Round "12.4"]
[White "Georgescu, Tiberiu-Marian"]
[Black "David, Alexandru-Vasile"]
[Result "0-1"]
[ECO "D35"]
[WhiteElo "2373"]
[BlackElo "2361"]
[Annotator "NA"]
[PlyCount "82"]
[EventDate "2019.11.06"]
[EventType "tourn"]
[EventCountry "ROU"]
[SourceTitle "playchess.com"]
[Source "ChessBase"]
[SourceQuality "1"]
[TimeMode "Bronstein"]
[TimeControl "300+3"]

1. d4 {[%emt 0:00:00]} Nf6 {[%emt 0:00:00]} 2. c4 {[%emt 0:00:00]} e6 {[%emt 0:00:00]} 3. Nc3 {[%emt 0:00:00]} d5 {[%emt 0:00:14]} 4. cxd5 {[%emt 0:00:00]} exd5 {[%emt 0:00:03]} 5. Bg5 {[%emt 0:00:00]} c6 {[%emt 0:00:06]} 6. e3 {[%emt 0:00:00]} Bd6 {[%emt 0:00:09]} 7. Bd3 {[%emt 0:00:02]} O-O {[%emt 0:00:04]} 8. Qc2 {[%emt 0:00:04]} h6 {[%emt 0:00:03]} 9. Bh4 Re8 {[%emt 0:00:11]} 10. Nge2 {[%emt 0:00:20]} a5 {[%emt 0:00:03]} 11. O-O {[%emt 0:00:12]} Bxh2+ {[%emt 0:00:11]} 12. Kh1 {[%emt 0:00:33]} Bd6 {[%emt 0:00:06]} 13. Rae1 {[%emt 0:00:26]} Na6 {[%emt 0:00:29]} 14. a3 {[%emt 0:00:03]} Nc7 {[%emt 0:00:03]} 15. Qd2 {[%emt 0:00:17]} Ne6 {[%emt 0:00:04]} 16. f3 {[%emt 0:00:07]} Ng5 {[%emt 0:00:16]} 17. Bxg5 {[%emt 0:00:34]} hxg5 {[%emt 0:00:03]} 18. e4 {[%emt 0:00:03]} Nh5 {[%emt 0:01:03]} 19. e5 {[%emt 0:00:05]} Be7 {[%emt 0:00:11]} 20. g4 {[%emt 0:00:14]} Nf4 {[%emt 0:00:07]} 21. Nxf4 {[%emt 0:00:03]} gxf4 {[%emt 0:00:03]} 22. Re2 {[%emt 0:00:17]} Bg5 {[%emt 0:00:31]} 23. Rh2 {[%emt 0:00:06]} c5 {[%emt 0:00:43]} 24. Bh7+ {[%emt 0:00:31]} Kf8 {[%emt 0:00:03]} 25. dxc5 {[%emt 0:00:22]} g6 {[%emt 0:00:12]} 26. Qd4 {[%emt 0:00:51]} Be6 {[%emt 0:00:09]} 27. Kg2 {[%emt 0:00:07]} Kg7 {[%emt 0:00:03]} 28. Rfh1 {[%emt 0:00:03]} Rh8 {[%emt 0:00:03]} 29. Ne2 {[%emt 0:00:03]} b6 {[%emt 0:00:10]} 30. c6 {[%emt 0:00:19]} Rc8 {[%emt 0:00:03]} 31. Nxf4 {[%emt 0:00:03]} Rxc6 {[%emt 0:00:03]} 32. Nxe6+ {[%emt 0:00:08]} fxe6 {[%emt 0:00:03]} 33. Qd3 {[%emt 0:00:03]} Qe8 {[%emt 0:00:10]} 34. Kg3 {[%emt 0:00:03]} Qf7 {[%emt 0:00:03]} 35. Qd4 {[%emt 0:00:05]} Rc4 {[%emt 0:00:03]} 36. Qxb6 {[%emt 0:00:05]} Qf4+ {[%emt 0:00:03]} 37. Kg2 {[%emt 0:00:10]} Rc2+ {[%emt 0:00:03]} 38. Qf2 {[%emt 0:00:03]} Rxf2+ {[%emt 0:00:04]} 39. Kxf2 {[%emt 0:00:03]} Qxe5 {[%emt 0:00:06]} 40. Kg2 {[%emt 0:00:04]} Bf4 {[%emt 0:00:06]} 41. Rh4 {[%emt 0:00:04]} Qe2+ {[%emt 0:00:03]} 0-1

[Event "SuperChess Cup Blitz 2019"]
[Site "Bucharest"]
[Date "2019.11.10"]
[Round "13.1"]
[White "Cosma, Elena-Luminita"]
[Black "Gavrilescu, David"]
[Result "0-1"]
[ECO "E06"]
[WhiteElo "2199"]
[BlackElo "2274"]
[Annotator "NA"]
[PlyCount "86"]
[EventDate "2019.11.06"]
[EventType "tourn"]
[EventCountry "ROU"]
[SourceTitle "playchess.com"]
[Source "ChessBase"]
[SourceQuality "1"]
[TimeMode "Bronstein"]
[TimeControl "300+3"]

1. d4 {[%emt 0:00:00]} Nf6 {[%emt 0:00:00]} 2. Nf3 {[%emt 0:00:00]} d5 {[%emt 0:00:00]} 3. c4 {[%emt 0:00:00]} e6 {[%emt 0:00:00]} 4. g3 {[%emt 0:00:00]} Be7 {[%emt 0:00:00]} 5. Bg2 {[%emt 0:00:00]} O-O {[%emt 0:00:00]} 6. O-O {[%emt 0:00:00]} dxc4 {[%emt 0:00:00]} 7. Qc2 {[%emt 0:00:00]} a6 {[%emt 0:00:00]} 8. Qxc4 {[%emt 0:00:00]} b5 {[%emt 0:00:00]} 9. Qc2 {[%emt 0:00:00]} Bb7 {[%emt 0:00:00]} 10. Bg5 {[%emt 0:00:00]} Be4 {[%emt 0:00:13]} 11. Qc1 {[%emt 0:00:06]} c6 {[%emt 0:00:03]} 12. Nbd2 {[%emt 0:00:26]} Bg6 {[%emt 0:00:45]} 13. Nb3 {[%emt 0:00:25]} a5 {[%emt 0:00:27]} 14. a4 {[%emt 0:00:18]} Ra7 {[%emt 0:00:46]} 15. Rd1 {[%emt 0:00:07]} bxa4 {[%emt 0:00:25]} 16. Rxa4 {[%emt 0:00:12]} Qb6 {[%emt 0:00:03]} 17. Bxf6 {[%emt 0:00:37]} Bxf6 {[%emt 0:00:12]} 18. Qc3 {[%emt 0:00:17]} Nd7 {[%emt 0:00:20]} 19. Ne5 {[%emt 0:00:39]} Nxe5 {[%emt 0:00:27]} 20. dxe5 {[%emt 0:00:03]} Be7 {[%emt 0:00:03]} 21. Nxa5 {[%emt 0:01:10]} Qb5 {[%emt 0:00:03]} 22. Bxc6 {[%emt 0:00:03]} Qxe2 {[%emt 0:00:03]} 23. Re1 {[%emt 0:00:07]} Qh5 {[%emt 0:00:26]} 24. Nc4 {[%emt 0:00:11]} Rc7 {[%emt 0:00:06]} 25. Bg2 {[%emt 0:00:07]} Rd8 {[%emt 0:00:07]} 26. Qf3 {[%emt 0:00:14]} Qh6 {[%emt 0:00:33]} 27. b3 {[%emt 0:00:10]} Rcd7 {[%emt 0:00:14]} 28. Ra8 {[%emt 0:00:05]} Bc2 {[%emt 0:00:14]} 29. Rea1 {[%emt 0:00:09]} Bf8 {[%emt 0:00:09]} 30. Rxd8 {[%emt 0:00:03]} Rxd8 {[%emt 0:00:03]} 31. Qc3 {[%emt 0:00:04]} Qg6 {[%emt 0:00:08]} 32. Ra8 {[%emt 0:00:05]} Rd1+ {[%emt 0:00:06]} 33. Bf1 {[%emt 0:00:05]} Qd3 {[%emt 0:00:06]} 34. Qxd3 {[%emt 0:00:03]} Bxd3 {[%emt 0:00:03]} 35. Ne3 {[%emt 0:00:03]} Rb1 {[%emt 0:00:03]} 36. Rb8 {[%emt 0:00:04]} g6 {[%emt 0:00:05]} 37. Kg2 {[%emt 0:00:03]} Bxf1+ 38. Nxf1 {[%emt 0:00:03]} Kg7 {[%emt 0:00:03]} 39. Ne3 {[%emt 0:00:05]} Bc5 {[%emt 0:00:03]} 40. Kf3 {[%emt 0:00:03]} Rb2 {[%emt 0:00:03]} 41. h4 {[%emt 0:00:03]} h5 {[%emt 0:00:03]} 42. Rb7 {[%emt 0:00:03]} Bd4 {[%emt 0:00:03]} 43. b4 {[%emt 0:00:03]} Bxe5 {[%emt 0:00:03]} 0-1